{"text_format":"1","workbook":"xlsx","n_sheets":1,"sheets":["1441"],"not_rendered":{"charts":0,"images":0,"macros":0,"external_links":0,"defined_names":0,"comments":0,"pivot_tables":0},"unopened":[],"bounds":{"document_bytes":16777216,"sheet_cells":100000,"rows_first":2000,"rows_last":500,"rows_between":2000,"halvings":0,"cell_chars":16384,"cell_head_chars":4096},"cells_cut":0,"cells_raw":0,"read":"whole","date_system":"1900"}

{"sheet":"1441","index":0,"n_rows":27,"n_cols":13,"rows_kept":27,"cut":false,"hidden":false,"merged":[]}
[null,null,"بيان بالعملاء لعام 1441 هـ",null,null,{"$f":"TODAY()","v":"2020-05-20"},null," finish"]
[null,null,null,null,null,{"$f":"+F4-F1","v":1},null,"not  finish"]
["رقم الفاتوره","اسم العميل","الجوال","العنوان","بداية الضمان","نهاية الضمان","حالة الضمان","النوع","المبلغ"," التركيب","ملاحظات"]
[142,"فالح  مفلح فالح الدوسري",null,null,"2020-05-20","2020-05-21",{"$f":"IF(F4<>\"\",+IF(F4<=TODAY(),\" finish\",IF(F4>TODAY(),\"not  finish\",\"\")),\"\")","v":"not  finish"}]
[142,"مرضي مبارك الدوسري",null,null,"11\\08\\1441","2020-05-20",{"$f":"IF(F5<>\"\",+IF(F5<=TODAY(),\" finish\",IF(F5>TODAY(),\"not  finish\",\"\")),\"\")","v":" finish"}]
[261,"عبدالله ال خليف",null,null,"18\\08\\1441","2020-05-19"," finish"]
[127,"فالح فهاد مفلح",null,null,"19\\08\\1441","2020-05-18"," finish"]
[128,"جابر شايع الدوسري",null,null,"08\\09\\1441","2020-05-20"," finish"]
[129,"خالد ناصر ال تني",null,null,"09\\09\\1441","2020-05-15"," finish"]
[131,"عبدالله حمد الدوسري",null,null,"13\\09\\1441","2020-05-16"," finish"]
[132,"محمد ظافر ال مشعوف",null,null,"19\\09\\1441","2020-05-17"," finish"]
[133,"عبدالله ناصر ال فاران",null,null,"19\\09\\1441","2020-05-18"," finish"]
[134,"راشد عبدالله الدوسري",null,null,"24\\09\\1441",{"$f":"TODAY()","v":"2020-05-20"}," finish",null,null,null,null,{"$f":"SUM(I4:I27)","v":0},{"$f":"SUM(J4:J27)","v":0}]
[135,"عبدالله سعود ال رويه",null,null,"25\\09\\1441","2020-05-20"," finish"]
[136,"عبدالهادي عبدالله",null,null,"26\\09\\1441","2020-05-20"," finish"]
[137,"سعود محمد ال رويه",null,null,"28\\09\\1441","2020-05-20"," finish"]
[null,null,null,null,null,null,""]
[null,null,null,null,null,null,""]
[null,null,null,null,null,null,""]
[null,null,null,null,null,null,""]
[null,null,null,null,null,null,""]
[null,null,null,null,null,null,""]
[null,null,null,null,null,null,{"$f":"IF(F23<>\"\",+IF(F23<=TODAY(),\" finish\",IF(F23>TODAY(),\"not  finish\",\"\")),\"\")","v":""}]
[null,null,null,null,null,null,""]
[null,null,null,null,null,null,""]
[null,null,null,null,null,null,""]
[null,null,null,null,null,null,""]